[Event "SS Manhem  - SS Manhem II, Div 1 January 2020"]
[Site "Vegagatan 20, Gothenburg, Sweden"]
[Date "2020.01.12"]
[Round "1.1"]
[White "Moller, Jan"]
[Black "Welin, Mats"]
[Result "0-1"]
[TimeControl "90 minutes for 40 moves + 30 minutes for the rest of the game + 30 seconds per move from move one."]
[BlackTitle "FM"]
[WhiteFideId "1723766"]
[BlackFideId "1705180"]
[WhiteElo "2098"]
[BlackElo "2328"]

1. Nf3 {[%clk 01:31:00]} {[%emt 00:27:46]} d5 {[%clk 01:30:18]} {[%emt
00:00:42]} 2. d4 {[%clk 01:30:56]} {[%emt 00:00:33]} Nf6 {[%clk 01:30:18]}
{[%emt 00:00:31]} 3. c4 {[%clk 01:31:21]} {[%emt 00:00:05]} e6 {[%clk
01:30:18]} {[%emt 00:00:29]} 4. Nc3 {[%clk 01:31:46]} {[%emt 00:00:06]} Be7
{[%clk 01:29:54]} {[%emt 00:00:54]} 5. Bf4 {[%clk 01:30:28]} {[%emt 00:01:49]}
O-O {[%clk 01:29:07]} {[%emt 00:01:17]} 6. e3 {[%clk 01:30:37]} {[%emt
00:00:21]} c5 {[%clk 01:28:57]} {[%emt 00:00:40]} 7. cxd5 {[%clk 01:28:19]}
{[%emt 00:02:48]} Nxd5 {[%clk 01:28:51]} {[%emt 00:00:36]} 8. Nxd5 {[%clk
01:26:35]} {[%emt 00:02:13]} Qxd5 {[%clk 01:27:50]} {[%emt 00:01:31]} 9. Be2
{[%clk 01:24:25]} {[%emt 00:02:40]} cxd4 {[%clk 01:25:14]} {[%emt 00:03:06]} 10.
exd4 {[%clk 01:16:41]} {[%emt 00:08:14]} Nc6 {[%clk 01:24:46]} {[%emt
00:00:58]} 11. O-O {[%clk 01:10:06]} {[%emt 00:07:05]} Rd8 {[%clk 01:15:48]}
{[%emt 00:09:28]} 12. Be3 {[%clk 01:08:45]} {[%emt 00:01:51]} b6 {[%clk
01:11:55]} {[%emt 00:04:24]} 13. Qb3 {[%clk 00:53:52]} {[%emt 00:15:22]} Qxb3
{[%clk 01:00:39]} {[%emt 00:11:47]} 14. axb3 {[%clk 00:54:21]} {[%emt
00:00:01]} Bb7 {[%clk 01:00:56]} {[%emt 00:00:13]} 15. Rfd1 {[%clk 00:44:58]}
{[%emt 00:09:51]} Na5 {[%clk 00:55:07]} {[%emt 00:06:20]} 16. Nd2 {[%clk
00:39:40]} {[%emt 00:05:48]} Bd5 {[%clk 00:45:36]} {[%emt 00:10:01]} 17. Bc4
{[%clk 00:37:50]} {[%emt 00:02:20]} Bf6 {[%clk 00:37:43]} {[%emt 00:08:23]} 18.
Bxd5 {[%clk 00:31:11]} {[%emt 00:07:09]} Rxd5 {[%clk 00:33:52]} {[%emt
00:04:20]} 19. Nc4 {[%clk 00:30:46]} {[%emt 00:00:56]} Rb8 {[%clk 00:28:46]}
{[%emt 00:05:36]} 20. Ne5 {[%clk 00:26:41]} {[%emt 00:04:35]} Nxb3 {[%clk
00:27:52]} {[%emt 00:01:25]} 21. Ra3 {[%clk 00:21:01]} {[%emt 00:06:09]} Bxe5
{[%clk 00:24:52]} {[%emt 00:03:30]} 22. Rxb3 {[%clk 00:21:25]} {[%emt
00:00:07]} Bd6 {[%clk 00:25:10]} {[%emt 00:00:11]} 23. Ra1 {[%clk 00:21:12]}
{[%emt 00:00:43]} a5 {[%clk 00:24:55]} {[%emt 00:00:45]} 24. Kf1 {[%clk
00:21:11]} {[%emt 00:00:31]} Bb4 {[%clk 00:21:52]} {[%emt 00:03:33]} 25. Rc1
{[%clk 00:20:59]} {[%emt 00:00:42]} Kf8 {[%clk 00:21:12]} {[%emt 00:01:10]} 26.
Rc7 {[%clk 00:19:15]} {[%emt 00:02:14]} Bd6 {[%clk 00:18:29]} {[%emt 00:03:12]}
27. Ra7 {[%clk 00:19:18]} {[%emt 00:00:28]} Ke8 {[%clk 00:16:24]} {[%emt
00:02:36]} 28. g3 {[%clk 00:18:54]} {[%emt 00:00:53]} Bb4 {[%clk 00:15:53]}
{[%emt 00:01:01]} 29. Bf4 {[%clk 00:16:56]} {[%emt 00:02:28]} Rc8 {[%clk
00:13:57]} {[%emt 00:02:26]} 30. Bc7 {[%clk 00:15:09]} {[%emt 00:02:17]} Rxd4
{[%clk 00:12:44]} {[%emt 00:01:43]} 31. Bxb6 {[%clk 00:15:26]} {[%emt
00:00:13]} Rd7 {[%clk 00:13:07]} {[%emt 00:00:07]} 32. Rxd7 {[%clk 00:09:24]}
{[%emt 00:06:32]} Kxd7 {[%clk 00:13:28]} {[%emt 00:00:09]} 33. Bd4 {[%clk
00:09:24]} {[%emt 00:00:30]} f6 {[%clk 00:12:33]} {[%emt 00:01:24]} 34. f4
{[%clk 00:08:55]} {[%emt 00:01:00]} Rc2 {[%clk 00:12:09]} {[%emt 00:00:54]} 35.
Bc3 {[%clk 00:07:23]} {[%emt 00:02:02]} Bxc3 {[%clk 00:12:04]} {[%emt
00:00:36]} 36. bxc3 {[%clk 00:07:52]} {[%emt 00:00:01]} Kc6 {[%clk 00:11:56]}
{[%emt 00:00:37]} 37. Ke1 {[%emt 00:00:29]} 0-1

[Event "SS Manhem  - SS Manhem II, Div 1 January 2020"]
[Site "Vegagatan 20, Gothenburg, Sweden"]
[Date "2020.01.12"]
[Round "1.2"]
[White "Fendrich, David"]
[Black "Berggren Torell, Harald"]
[Result "0-1"]
[TimeControl "90 minutes for 40 moves + 30 minutes for the rest of the game + 30 seconds per move from move one."]
[WhiteFideId "1705725"]
[BlackFideId "1714031"]
[WhiteElo "2200"]
[BlackElo "2095"]

1. g3 {[%clk 01:29:04]} {[%emt 00:01:56]} g6 {[%clk 01:30:58]} {[%emt
00:00:02]} 2. Bg2 {[%clk 01:29:26]} {[%emt 00:00:08]} Bg7 {[%clk 01:31:26]}
{[%emt 00:00:02]} 3. c4 {[%clk 01:27:16]} {[%emt 00:02:40]} Nf6 {[%clk
01:31:53]} {[%emt 00:00:03]} 4. Nc3 {[%clk 01:27:39]} {[%emt 00:00:07]} O-O
{[%clk 01:32:19]} {[%emt 00:00:04]} 5. e4 {[%clk 01:27:30]} {[%emt 00:00:39]}
d6 {[%clk 01:32:48]} {[%emt 00:00:01]} 6. Nge2 {[%clk 01:27:28]} {[%emt
00:00:32]} c5 {[%clk 01:32:29]} {[%emt 00:00:49]} 7. O-O {[%clk 01:25:34]}
{[%emt 00:02:24]} Nc6 {[%clk 01:32:05]} {[%emt 00:00:54]} 8. d3 {[%clk
01:23:45]} {[%emt 00:02:19]} a6 {[%clk 01:23:46]} {[%emt 00:08:48]} 9. h3
{[%clk 01:19:20]} {[%emt 00:04:56]} e5 {[%clk 01:17:08]} {[%emt 00:07:08]} 10.
f4 {[%clk 01:15:52]} {[%emt 00:03:58]} exf4 {[%clk 00:58:57]} {[%emt 00:18:40]}
11. Nxf4 {[%clk 01:12:55]} {[%emt 00:03:28]} Rb8 {[%clk 00:56:45]} {[%emt
00:02:42]} 12. a4 {[%clk 01:12:18]} {[%emt 00:01:07]} Bd7 {[%clk 00:52:09]}
{[%emt 00:05:06]} 13. Be3 {[%clk 01:07:17]} {[%emt 00:05:30]} Ne5 {[%clk
00:49:53]} {[%emt 00:02:47]} 14. Qe2 {[%clk 00:52:02]} {[%emt 00:15:46]} g5
{[%clk 00:30:52]} {[%emt 00:19:32]} 15. Nfd5 {[%clk 00:43:19]} {[%emt
00:09:12]} Nxd5 {[%clk 00:30:45]} {[%emt 00:00:37]} 16. Nxd5 {[%clk 00:43:34]}
{[%emt 00:00:14]} Be6 {[%clk 00:28:19]} {[%emt 00:02:56]} 17. Rab1 {[%clk
00:35:07]} {[%emt 00:08:56]} g4 {[%clk 00:24:02]} {[%emt 00:04:48]} 18. Nf4
{[%clk 00:28:54]} {[%emt 00:06:43]} Qd7 {[%clk 00:20:19]} {[%emt 00:04:13]} 19.
h4 {[%clk 00:24:00]} {[%emt 00:05:24]} Qxa4 {[%clk 00:19:38]} {[%emt 00:01:11]}
20. Nh5 {[%clk 00:16:51]} {[%emt 00:07:39]} f6 {[%clk 00:14:00]} {[%emt
00:06:08]} 21. Qd2 {[%clk 00:13:03]} {[%emt 00:04:18]} Bh8 {[%clk 00:12:39]}
{[%emt 00:01:51]} 22. Bh6 {[%clk 00:08:59]} {[%emt 00:04:34]} Rf7 {[%clk
00:13:04]} {[%emt 00:00:04]} 23. b3 {[%clk 00:07:49]} {[%emt 00:01:39]} Qd7
{[%clk 00:10:50]} {[%emt 00:02:45]} 24. Rf2 {[%clk 00:07:15]} {[%emt 00:01:04]}
Nf3+ {[%clk 00:08:29]} {[%emt 00:02:51]} 25. Bxf3 {[%clk 00:07:29]} {[%emt
00:00:16]} gxf3 {[%clk 00:08:58]} {[%emt 00:00:01]} 26. Nf4 {[%clk 00:05:09]}
{[%emt 00:02:50]} Bg4 {[%clk 00:09:15]} {[%emt 00:00:14]} 27. Nd5 {[%clk
00:04:22]} {[%emt 00:01:17]} Bg7 {[%clk 00:07:22]} {[%emt 00:02:23]} 28. Bxg7
{[%clk 00:03:59]} {[%emt 00:00:53]} Kxg7 {[%clk 00:07:22]} {[%emt 00:00:30]} 29.
Qf4 {[%clk 00:03:56]} {[%emt 00:00:32]} b5 {[%clk 00:02:43]} {[%emt 00:05:09]}
30. Ne3 {[%clk 00:02:58]} {[%emt 00:01:29]} h5 {[%clk 00:03:06]} {[%emt
00:00:07]} 31. Nf5+ {[%clk 00:01:08]} {[%emt 00:02:20]} Bxf5 {[%clk 00:03:16]}
{[%emt 00:00:20]} 32. exf5 {[%clk 00:01:33]} {[%emt 00:00:05]} Re7 {[%clk
00:03:23]} {[%emt 00:00:23]} 33. Qxf3 {[%clk 00:01:47]} {[%emt 00:00:16]} Qe8
{[%clk 00:03:40]} {[%emt 00:00:13]} 34. g4 {[%clk 00:01:04]} {[%emt 00:01:13]}
bxc4 {[%clk 00:02:32]} {[%emt 00:01:38]} 35. dxc4 {[%clk 00:00:47]} {[%emt
00:00:46]} Re3 {[%clk 00:02:05]} {[%emt 00:00:58]} 36. Qf4 {[%clk 00:01:05]}
{[%emt 00:00:12]} Re4 {[%clk 00:02:18]} {[%emt 00:00:17]} 37. Qxd6 {[%clk
00:01:09]} {[%emt 00:00:26]} Rxg4+ {[%clk 00:02:29]} {[%emt 00:00:19]} 38. Kf1
{[%clk 00:00:43]} {[%emt 00:00:55]} Qe4 {[%clk 00:01:38]} {[%emt 00:01:21]} 39.
Qc7+ {[%clk 00:00:38]} {[%emt 00:00:35]} Kh6 {[%clk 00:02:08]} 40. Rbb2 {[%clk
00:00:36]} {[%emt 00:00:32]} Re8 {[%emt 00:01:26]} 0-1

[Event "SS Manhem  - SS Manhem II, Div 1 January 2020"]
[Site "Vegagatan 20, Gothenburg, Sweden"]
[Date "2020.01.12"]
[Round "1.3"]
[White "Nilsson, Richard"]
[Black "Lundstrom, Mattias"]
[Result "0-1"]
[TimeControl "90 minutes for 40 moves + 30 minutes for the rest of the game + 30 seconds per move from move one."]
[WhiteFideId "1709348"]
[BlackFideId "1703536"]
[WhiteElo "2045"]
[BlackElo "2148"]

1. d4 {[%clk 01:30:55]} {[%emt 00:00:04]} d5 {[%clk 01:30:47]} {[%emt
00:00:14]} 2. c4 {[%clk 01:31:15]} {[%emt 00:00:10]} e6 {[%clk 01:31:10]}
{[%emt 00:00:06]} 3. Nc3 {[%clk 01:31:12]} {[%emt 00:00:33]} c6 {[%clk
01:31:30]} {[%emt 00:00:10]} 4. e3 {[%clk 01:28:50]} {[%emt 00:02:53]} Nf6
{[%clk 01:31:48]} {[%emt 00:00:11]} 5. Bd3 {[%clk 01:29:15]} {[%emt 00:00:06]}
Nbd7 {[%clk 01:31:33]} {[%emt 00:00:44]} 6. Nf3 {[%clk 01:28:42]} {[%emt
00:01:04]} dxc4 {[%clk 01:31:30]} {[%emt 00:00:33]} 7. Bxc4 {[%clk 01:29:02]}
{[%emt 00:00:10]} b5 {[%clk 01:31:56]} {[%emt 00:00:04]} 8. Bd3 {[%clk
01:26:50]} {[%emt 00:02:42]} a6 {[%clk 01:32:16]} {[%emt 00:00:09]} 9. O-O
{[%clk 01:21:03]} {[%emt 00:06:18]} c5 {[%clk 01:32:31]} {[%emt 00:00:15]} 10.
Re1 {[%clk 01:16:44]} {[%emt 00:04:48]} Bb7 {[%clk 01:29:52]} {[%emt 00:03:09]}
11. a3 {[%clk 01:08:00]} {[%emt 00:09:15]} Be7 {[%clk 01:22:17]} {[%emt
00:08:05]} 12. Bf1 {[%clk 00:48:48]} {[%emt 00:19:42]} O-O {[%clk 01:17:08]}
{[%emt 00:05:39]} 13. g3 {[%clk 00:38:37]} {[%emt 00:10:42]} Qb6 {[%clk
01:06:50]} {[%emt 00:10:47]} 14. Bg2 {[%clk 00:38:46]} {[%emt 00:00:21]} Rfd8
{[%clk 01:06:17]} {[%emt 00:01:02]} 15. Qe2 {[%clk 00:35:07]} {[%emt 00:04:09]}
Rac8 {[%clk 01:02:30]} {[%emt 00:04:17]} 16. Rd1 {[%clk 00:35:11]} {[%emt
00:00:26]} Ne4 {[%clk 00:57:14]} {[%emt 00:05:46]} 17. Nxe4 {[%clk 00:30:26]}
{[%emt 00:05:16]} Bxe4 {[%clk 00:57:33]} {[%emt 00:00:10]} 18. Ne1 {[%clk
00:25:03]} {[%emt 00:05:53]} Bxg2 {[%clk 00:56:59]} {[%emt 00:01:05]} 19. Kxg2
{[%clk 00:25:22]} {[%emt 00:00:12]} Bf6 {[%clk 00:54:26]} {[%emt 00:03:02]} 20.
Bd2 {[%clk 00:11:31]} {[%emt 00:14:21]} cxd4 {[%clk 00:52:48]} {[%emt
00:02:07]} 21. exd4 {[%clk 00:11:52]} {[%emt 00:00:10]} Bxd4 {[%clk 00:52:24]}
{[%emt 00:00:54]} 22. Ba5 {[%clk 00:12:05]} {[%emt 00:00:18]} Qxa5 {[%clk
00:51:08]} {[%emt 00:01:45]} 23. Rxd4 {[%clk 00:12:30]} {[%emt 00:00:05]} Nf6
{[%clk 00:49:47]} {[%emt 00:01:51]} 24. Rad1 {[%clk 00:12:45]} {[%emt
00:00:15]} Rxd4 {[%clk 00:47:03]} {[%emt 00:03:14]} 25. Rxd4 {[%clk 00:13:14]}
{[%emt 00:00:02]} Qb6 {[%clk 00:46:06]} {[%emt 00:01:26]} 26. Qd3 {[%clk
00:11:53]} {[%emt 00:01:52]} Nd5 {[%clk 00:45:45]} {[%emt 00:00:50]} 27. Qe4
{[%clk 00:06:31]} {[%emt 00:05:54]} h6 {[%clk 00:43:16]} {[%emt 00:02:59]} 28.
Nd3 {[%clk 00:06:48]} {[%emt 00:00:13]} Nf6 {[%clk 00:38:18]} {[%emt 00:05:27]}
29. Qf4 {[%clk 00:05:10]} {[%emt 00:02:09]} Rc2 {[%clk 00:34:10]} {[%emt
00:04:37]} 30. Kh3 {[%clk 00:03:39]} {[%emt 00:02:01]} Nd5 {[%clk 00:30:06]}
{[%emt 00:04:34]} 31. Qe4 {[%clk 00:03:36]} {[%emt 00:00:33]} a5 {[%clk
00:29:28]} {[%emt 00:01:09]} 32. f4 {[%clk 00:03:40]} {[%emt 00:00:26]} Nf6
{[%clk 00:25:08]} {[%emt 00:04:49]} 33. Qe5 {[%clk 00:03:55]} {[%emt 00:00:16]}
Rxh2+ {[%emt 00:00:13]} 0-1

[Event "SS Manhem  - SS Manhem II, Div 1 January 2020"]
[Site "Vegagatan 20, Gothenburg, Sweden"]
[Date "2020.01.12"]
[Round "1.4"]
[White "Troedsson, Anton"]
[Black "Lacko, Pavel"]
[Result "0-1"]
[TimeControl "90 minutes for 40 moves + 30 minutes for the rest of the game + 30 seconds per move from move one."]
[WhiteFideId "1746006"]
[BlackFideId "1701274"]
[WhiteElo "2112"]
[BlackElo "2009"]

1. Nf3 {[%clk 01:30:58]} Nf6 {[%clk 01:30:36]} {[%emt 00:00:25]} 2. b3 {[%clk
01:30:49]} {[%emt 00:00:39]} d5 {[%clk 01:30:19]} {[%emt 00:00:47]} 3. Bb2
{[%clk 01:31:06]} {[%emt 00:00:12]} Bf5 {[%clk 01:29:46]} {[%emt 00:01:05]} 4.
e3 {[%clk 01:29:53]} {[%emt 00:01:42]} e6 {[%clk 01:28:00]} {[%emt 00:02:17]} 5.
Bd3 {[%clk 01:29:04]} {[%emt 00:01:19]} Bg6 {[%clk 01:24:03]} {[%emt 00:04:27]}
6. O-O {[%clk 01:26:36]} {[%emt 00:02:58]} Bd6 {[%clk 01:21:37]} {[%emt
00:02:56]} 7. Ne5 {[%clk 01:19:11]} {[%emt 00:07:55]} Bxe5 {[%clk 01:08:02]}
{[%emt 00:14:06]} 8. Bxe5 {[%clk 01:19:20]} {[%emt 00:00:20]} Nbd7 {[%clk
01:08:23]} {[%emt 00:00:10]} 9. Bb2 {[%clk 01:18:50]} {[%emt 00:01:00]} c6
{[%clk 01:01:04]} {[%emt 00:07:50]} 10. Ba3 {[%clk 01:09:05]} {[%emt 00:10:14]}
Qc7 {[%clk 01:00:39]} {[%emt 00:00:55]} 11. Be2 {[%clk 01:03:39]} {[%emt
00:05:56]} O-O-O {[%clk 00:56:20]} {[%emt 00:04:49]} 12. d4 {[%clk 00:57:30]}
{[%emt 00:06:38]} h5 {[%clk 00:52:29]} {[%emt 00:04:22]} 13. c4 {[%clk
00:57:05]} {[%emt 00:00:55]} Ng4 {[%clk 00:45:03]} {[%emt 00:07:56]} 14. g3
{[%clk 00:57:18]} {[%emt 00:00:18]} Ndf6 {[%clk 00:39:31]} {[%emt 00:06:02]} 15.
Nd2 {[%clk 00:50:34]} {[%emt 00:07:14]} Bf5 {[%clk 00:37:11]} {[%emt 00:02:49]}
16. Bf3 {[%clk 00:24:52]} {[%emt 00:26:12]} h4 {[%clk 00:36:20]} {[%emt
00:01:20]} 17. Re1 {[%clk 00:10:46]} {[%emt 00:14:39]} hxg3 {[%clk 00:18:59]}
{[%emt 00:17:51]} 18. hxg3 {[%clk 00:11:07]} {[%emt 00:00:08]} Nxf2 {[%clk
00:17:53]} {[%emt 00:01:36]} 19. Kxf2 {[%clk 00:10:10]} {[%emt 00:01:27]} Rh2+
{[%clk 00:18:01]} {[%emt 00:00:22]} 20. Bg2 {[%clk 00:10:24]} {[%emt 00:00:16]}
Bh3 {[%clk 00:13:29]} {[%emt 00:05:01]} 21. Rg1 {[%clk 00:10:35]} {[%emt
00:00:19]} Ng4+ {[%clk 00:12:18]} {[%emt 00:01:42]} 22. Kf3 {[%clk 00:08:53]}
{[%emt 00:02:12]} Bxg2+ {[%clk 00:11:54]} {[%emt 00:00:54]} 23. Rxg2 {[%clk
00:08:16]} {[%emt 00:01:07]} Rxg2 {[%clk 00:12:03]} {[%emt 00:00:21]} 24. Nf1
{[%clk 00:08:05]} {[%emt 00:00:41]} Rf2+ {[%clk 00:11:42]} {[%emt 00:00:52]} 25.
Kxg4 {[%clk 00:08:33]} {[%emt 00:00:02]} f5+ {[%clk 00:11:53]} {[%emt
00:00:18]} 26. Kg5 {[%clk 00:08:59]} {[%emt 00:00:04]} Qf7 {[%clk 00:10:50]}
{[%emt 00:01:32]} 0-1

[Event "SS Manhem  - SS Manhem II, Div 1 January 2020"]
[Site "Vegagatan 20, Gothenburg, Sweden"]
[Date "2020.01.12"]
[Round "1.5"]
[White "Svensson, Lars"]
[Black "Pettersson, Anders"]
[Result "1-0"]
[TimeControl "90 minutes for 40 moves + 30 minutes for the rest of the game + 30 seconds per move from move one."]
[WhiteFideId "1734466"]
[BlackFideId "1715143"]
[WhiteElo "1993"]
[BlackElo "2108"]

1. e4 {[%clk 01:30:54]} {[%emt 00:00:05]} b6 {[%clk 01:30:06]} {[%emt
00:00:55]} 2. d4 {[%clk 01:31:13]} {[%emt 00:00:11]} Bb7 {[%clk 01:30:31]}
{[%emt 00:00:04]} 3. Nc3 {[%clk 01:31:18]} {[%emt 00:00:26]} e6 {[%clk
01:30:54]} {[%emt 00:00:07]} 4. a3 {[%clk 01:28:40]} {[%emt 00:03:09]} g6
{[%clk 01:28:25]} {[%emt 00:02:58]} 5. Be3 {[%clk 01:15:04]} {[%emt 00:14:06]}
Bg7 {[%clk 01:28:25]} {[%emt 00:00:30]} 6. Qd2 {[%clk 01:14:46]} {[%emt
00:00:49]} d5 {[%clk 01:16:12]} {[%emt 00:12:42]} 7. e5 {[%clk 01:12:26]}
{[%emt 00:02:51]} c5 {[%clk 01:15:52]} {[%emt 00:00:50]} 8. Nb5 {[%clk
01:06:42]} {[%emt 00:06:14]} Bf8 {[%clk 01:13:00]} {[%emt 00:03:21]} 9. Nf3
{[%clk 01:04:35]} {[%emt 00:02:37]} a6 {[%clk 01:10:24]} {[%emt 00:03:07]} 10.
Nc3 {[%clk 01:02:14]} {[%emt 00:02:51]} Nc6 {[%clk 01:08:42]} {[%emt 00:02:11]}
11. Ne2 {[%clk 00:59:30]} {[%emt 00:03:14]} Qc7 {[%clk 01:06:31]} {[%emt
00:02:40]} 12. g3 {[%clk 00:55:24]} {[%emt 00:04:37]} cxd4 {[%clk 00:59:42]}
{[%emt 00:07:19]} 13. Bxd4 {[%clk 00:47:04]} {[%emt 00:08:50]} Nxd4 {[%clk
00:56:03]} {[%emt 00:04:09]} 14. Nexd4 {[%clk 00:47:15]} {[%emt 00:00:19]} Bg7
{[%clk 00:51:34]} {[%emt 00:04:58]} 15. Qe3 {[%clk 00:43:14]} {[%emt 00:04:31]}
h5 {[%clk 00:51:31]} {[%emt 00:00:33]} 16. h3 {[%clk 00:37:58]} {[%emt
00:05:46]} Bh6 {[%clk 00:49:07]} {[%emt 00:02:54]} 17. Qd3 {[%clk 00:18:17]}
{[%emt 00:20:12]} h4 {[%clk 00:41:27]} {[%emt 00:08:10]} 18. Bg2 {[%clk
00:17:05]} {[%emt 00:01:42]} hxg3 {[%clk 00:36:06]} {[%emt 00:05:51]} 19. fxg3
{[%clk 00:17:34]} Ne7 {[%clk 00:28:55]} {[%emt 00:07:40]} 20. O-O {[%clk
00:14:12]} {[%emt 00:03:53]} Nf5 {[%clk 00:29:05]} {[%emt 00:00:21]} 21. Nxf5
{[%clk 00:14:17]} {[%emt 00:00:26]} gxf5 {[%clk 00:29:24]} {[%emt 00:00:10]} 22.
Nd4 {[%clk 00:11:54]} {[%emt 00:02:53]} Bg7 {[%clk 00:24:05]} {[%emt 00:05:48]}
23. Rae1 {[%clk 00:12:16]} {[%emt 00:00:09]} Rh6 {[%clk 00:20:01]} {[%emt
00:04:33]} 24. Qe3 {[%clk 00:10:32]} {[%emt 00:02:15]} Rg6 {[%clk 00:20:01]}
{[%emt 00:00:29]} 25. Kh2 {[%clk 00:10:31]} {[%emt 00:00:32]} O-O-O {[%clk
00:18:06]} {[%emt 00:02:25]} 26. Rf3 {[%clk 00:08:05]} {[%emt 00:02:55]} Kb8
{[%clk 00:17:21]} {[%emt 00:01:16]} 27. Qe2 {[%clk 00:06:46]} {[%emt 00:01:50]}
Rh8 {[%clk 00:09:56]} {[%emt 00:07:54]} 28. Rc3 {[%clk 00:06:36]} {[%emt
00:00:40]} Qd7 {[%clk 00:10:24]} {[%emt 00:00:01]} 29. Qf2 {[%clk 00:05:26]}
{[%emt 00:01:41]} Bf8 {[%clk 00:07:05]} {[%emt 00:03:48]} 30. b4 {[%clk
00:04:58]} {[%emt 00:00:58]} Rg4 {[%clk 00:04:37]} {[%emt 00:02:58]} 31. Kg1
{[%clk 00:05:12]} {[%emt 00:00:17]} Re4 {[%clk 00:04:30]} {[%emt 00:00:37]} 32.
Bxe4 {[%clk 00:05:21]} {[%emt 00:00:21]} dxe4 {[%clk 00:04:52]} {[%emt
00:00:07]} 33. Kh2 {[%clk 00:05:09]} {[%emt 00:00:43]} f6 {[%clk 00:02:16]}
{[%emt 00:03:06]} 34. exf6 {[%clk 00:04:47]} {[%emt 00:00:52]} Bd6 {[%clk
00:02:46]} 35. Ne2 {[%clk 00:02:19]} {[%emt 00:02:58]} Qh7 {[%clk 00:01:16]}
{[%emt 00:02:00]} 36. Nf4 {[%clk 00:02:40]} {[%emt 00:00:09]} e5 {[%clk
00:01:32]} {[%emt 00:00:14]} 37. Qxb6 {[%clk 00:03:00]} {[%emt 00:00:09]} Qd7
{[%clk 00:00:43]} {[%emt 00:01:19]} 38. Rd1 {[%clk 00:01:54]} {[%emt 00:01:37]}
exf4 {[%clk 00:01:11]} {[%emt 00:00:02]} 39. Qxd6+ {[%clk 00:00:55]} {[%emt
00:01:28]} Qxd6 {[%clk 00:01:40]} {[%emt 00:00:01]} 40. Rxd6 {[%clk 00:01:24]}
f3 {[%clk 00:00:39]} {[%emt 00:03:53]} 41. Re3 {[%clk 00:00:44]} {[%emt
00:01:10]} Kc7 {[%clk 00:27:32]} {[%emt 00:03:38]} 42. Re6 {[%clk 00:28:50]}
{[%emt 00:02:23]} Rd8 {[%clk 00:24:12]} {[%emt 00:03:50]} 43. Re7+ {[%clk
00:05:03]} {[%emt 00:24:18]} Kc8 {[%clk 00:21:36]} {[%emt 00:03:05]} 44. f7
{[%clk 00:02:03]} {[%emt 00:03:30]} Bd5 {[%clk 00:21:17]} {[%emt 00:00:49]} 45.
Rc3+ {[%clk 00:02:08]} {[%emt 00:00:25]} Kb8 {[%clk 00:20:22]} {[%emt
00:01:25]} 46. Re8 {[%clk 00:02:32]} {[%emt 00:00:06]} 1-0